fUSD/lending_fUSD_20251113
["ID","MTS","AMOUNT","RATE_DAILY","PERIOD"]
[393848389,1763041840073,-161.277377,0.00036246,20]
[393848390,1763041840083,-206.37744859,0.00036268,120]
[393848391,1763041840092,-1019.20832636,0.00036364,5]
[393848392,1763041840102,-295.499,0.00036414,2]
[393848393,1763041840112,-150.0,0.00036414,2]
[393848394,1763041840123,-1721.25,0.00036434,2]
[393848395,1763041840132,-2508.07,0.00036598,2]
[393848396,1763041840141,-2045.83,0.00036603,2]
[393848397,1763041840151,-177.09,0.00036603,2]
[393848398,1763041840160,-150.0,0.00036603,2]
[393848399,1763041840170,-169.32,0.00036603,2]
[393848400,1763041840179,-4034.76240985,0.00036655,2]
[393848401,1763041840190,-150.0,0.0003674,7]
[393848402,1763041840200,-12961.6821873,0.00036758,4]
[393848403,1763041840210,-14531.6547917,0.00036768,4]
[393848404,1763041840219,-152.0,0.00036769,6]
[393848405,1763041840228,-1000.66376682,0.00036778,30]
[393848406,1763041840237,-1000.0,0.00036778,30]
[393848407,1763041840247,-1803.37524357,0.00036778,30]
[393848408,1763041840256,-1000.24079532,0.00036778,30]
[393848409,1763041840266,-1847.3488344,0.00036778,30]
[393848410,1763041840275,-1017.45328069,0.00036778,30]
[393848411,1763041840285,-1997.71458351,0.00036778,30]
[393848412,1763041840294,-1017.67628983,0.00036778,30]
[393848413,1763041840303,-1000.0,0.00036778,30]
[393848414,1763041840313,-1000.0,0.00036778,30]
[393848415,1763041840322,-699.71,0.00036877,2]
[393848416,1763041840331,-699.71,0.00036877,2]
[393848417,1763041840340,-699.71,0.00036877,2]
[393848418,1763041840350,-699.71,0.00036877,2]
[393848419,1763041840359,-699.71,0.00036877,2]
[393848420,1763041840368,-699.71,0.00036877,2]
[393848421,1763041840377,-611.82,0.00036877,2]
[393848422,1763041840386,-163.22012196,0.00036887,2]
[393848423,1763041840395,-171.62032392,0.000369,9]
[393848424,1763041840404,-195.95,0.000369,30]
[393848425,1763041840414,-5888.0,0.0003691,2]
[393848426,1763041840423,-12961.6821873,0.00036929,4]
[393848427,1763041840433,-14531.6547917,0.00036938,4]
[393848428,1763041840442,-371.0,0.00036958,2]
[393848429,1763041840451,-1561.85660384,0.00037,5]
[393848430,1763041840461,-12961.6821873,0.00037053,4]
[393848431,1763041840470,-14531.6547917,0.00037063,4]
[393848432,1763041840479,-4053.0,0.00037073,7]
[393848433,1763041840488,-204.48,0.00037096,2]
[393848434,1763041840497,-681.0,0.00037123,6]
[393848435,1763041840507,-4655.67352646,0.00037132,2]
[393848436,1763041840517,-500.0,0.00037159,2]
[393848437,1763041840526,-8801.03827474,0.0003716,2]
[393848438,1763041840536,-150.0,0.0003742,7]
[393848439,1763041840545,-206.37744859,0.00037638,120]
[393848440,1763041840554,-12961.6821873,0.00037676,4]
[393848441,1763041840563,-14531.6547917,0.00037686,4]
[393848442,1763041840572,-1421.65742573,0.00037696,2]
[393848443,1763041840581,-1000.0,0.000377,7]
[393848444,1763041840591,-1613.0,0.000377,7]
[393848445,1763041840600,-1009.0,0.000377,7]
[393848446,1763041840610,-180.69318507,0.000378,2]
[393848447,1763041840619,-9770.2137,0.000379,2]
[393848448,1763041840628,-600.0,0.000379,13]
[393848449,1763041840637,-500.0,0.00037901,30]
[393848450,1763041840647,-12961.6821873,0.0003794,4]
[393848451,1763041840656,-14531.6547917,0.0003795,4]
[393848453,1763041840666,-12961.6821873,0.0003795,4]
[393848455,1763041840675,-14531.6547917,0.0003796,4]
[393848457,1763041840685,-12961.6821873,0.0003796,4]
[393848459,1763041840694,-38115.49079358,0.0003797,2]
[393848461,1763041840703,-181.66682227,0.00038,2]
[393848463,1763041840712,-177.74,0.00038,14]
[393848465,1763041840721,-1010.0,0.00038,7]
[393848467,1763041840730,-1000.0,0.00038,7]
[393848469,1763041840739,-12961.6821873,0.00038017,4]
[393848471,1763041840747,-14531.6547917,0.00038028,4]
[393848473,1763041840756,-3428.0,0.00038048,2]
[393848475,1763041840765,-575.0,0.00038048,2]
[393848476,1763041840775,-327.84,0.00038052,2]
[393848477,1763041840783,-2144.0,0.00038052,2]
[393848478,1763041840792,-6668.0,0.00038052,2]
[393848479,1763041840802,-166.88,0.00038092,60]
[393848480,1763041840811,-12961.6821873,0.00038096,4]
[393848481,1763041840820,-195.95,0.000381,30]
[393848482,1763041840829,-1000.0,0.000381,7]
[393848483,1763041840837,-150.0,0.000381,7]
[393848484,1763041840847,-5888.0,0.00038106,2]
[393848485,1763041840856,-152.0,0.00038111,7]
[393848486,1763041840865,-166.88,0.00038192,60]
[393848487,1763041840875,-1022.01519638,0.00038271,2]
[393848488,1763041840885,-151.02,0.00038271,2]
[393848489,1763041840894,-179.41,0.00038281,2]
[393848490,1763041840903,-14531.6547917,0.00038282,4]
[393848491,1763041840911,-180.69318502,0.00038288,2]
[393848492,1763041840920,-166.88,0.00038292,60]
[393848493,1763041840929,-500.0,0.00038356,4]
[393848494,1763041840938,-466.98322191,0.00038356,4]
[393848495,1763041840947,-980.05,0.00038356,4]
[393848496,1763041840955,-166.88325274,0.00038392,120]
[393848497,1763041840964,-5648.06783596,0.00038398,2]
[393848498,1763041840973,-179.40878844,0.00038593,2]
[393848499,1763041840982,-1367.36,0.000386,14]
[393848500,1763041840991,-500.0,0.0003863,4]
[393848501,1763041841000,-980.05,0.0003863,4]
[393848503,1763041841008,-500.0,0.000387,120]
[393848504,1763041841017,-500.0,0.000387,120]
[393848505,1763041841026,-500.0,0.000387,120]
[393848506,1763041841034,-500.0,0.000387,120]
[393848508,1763041841043,-1383.09,0.000387,14]
[393848510,1763041841052,-168.24670757,0.000387,120]
[393848512,1763041841062,-150.0,0.00038781,7]
[393848514,1763041841072,-300.0,0.00038804,2]
[393848516,1763041841081,-171.62032392,0.00038816,12]
[393848518,1763041841091,-12961.6821873,0.00038853,4]
[393848520,1763041841099,-150.0,0.00038863,120]
[393848522,1763041841110,-14531.6547917,0.00038894,4]
[393848524,1763041841118,-177.74,0.000389,14]
[393848526,1763041841127,-195.95,0.000389,30]
[393848528,1763041841136,-500.0,0.00038904,4]
[393848530,1763041841147,-980.05,0.00038904,4]
[393848532,1763041841156,-4655.67352646,0.00038931,2]
[393848534,1763041841165,-12961.6821873,0.0003898,4]
[393848536,1763041841174,-500.0,0.00038989,2]
[393848538,1763041841183,-29063.3095835,0.0003899,4]
[393848540,1763041841191,-25923.3643746,0.0003899,4]
[393848542,1763041841200,-33940.18609378,0.00039,10]
[393848544,1763041841209,-1980.0,0.00039,2]
[393848546,1763041841218,-2000.0,0.00039,2]
[393848548,1763041841226,-2000.0,0.00039,2]
[393848550,1763041841235,-2000.0,0.00039,2]
[393848552,1763041841244,-2016.98,0.00039,2]
[393848554,1763041841253,-181.0,0.00039,2]
[393848556,1763041841262,-206.37744859,0.00039008,120]
[393848558,1763041841270,-4053.0,0.00039033,2]
[393848560,1763041841279,-359.28,0.00039041,2]
[393848562,1763041841287,-284.11,0.00039041,2]
[393848564,1763041841296,-1122.67,0.00039041,2]
[393848566,1763041841305,-1207.25,0.00039041,2]
[393848568,1763041841313,-150.0,0.00039041,2]
[393848570,1763041841322,-343.34,0.00039041,2]
[393848572,1763041841331,-1099.48,0.00039041,2]
[393848574,1763041841339,-169.14,0.00039041,2]
[393848576,1763041841348,-150.0,0.00039041,2]
[393848577,1763041841357,-195.50802629,0.00039089,120]
[393848578,1763041841366,-12961.6821873,0.00039168,4]
[393848579,1763041841375,-500.0,0.00039178,4]
[393848580,1763041841384,-980.05,0.00039178,4]
[393848581,1763041841393,-150.0,0.00039414,2]
[393848582,1763041841402,-500.0,0.00039452,4]
[393848583,1763041841411,-980.05,0.00039452,4]
[393848584,1763041841420,-152.0,0.00039454,8]
[393848585,1763041841429,-150.0,0.00039461,7]
[393848586,1763041841438,-12961.6821873,0.0003949,4]
[393848587,1763041841447,-31808.07350707,0.000395,2]
[393848588,1763041841456,-702.81,0.00039564,2]
[393848589,1763041841466,-1116.67342318,0.00039626,2]
[393848590,1763041841475,-393.87,0.00039654,2]
[393848591,1763041841484,-12961.6821873,0.00039683,4]
[393848592,1763041841495,-500.0,0.00039693,7]
[393848593,1763041841505,-500.0,0.00039693,7]
[393848594,1763041841515,-500.0,0.00039693,7]
[393848595,1763041841525,-500.0,0.00039693,7]
[393848596,1763041841535,-500.0,0.00039693,7]
[393848597,1763041841544,-500.0,0.00039693,7]
[393848598,1763041841554,-500.0,0.00039693,7]
[393848599,1763041841565,-500.0,0.00039693,7]
[393848600,1763041841574,-500.0,0.00039693,7]
[393848601,1763041841584,-500.0,0.00039693,7]
[393848602,1763041841594,-500.0,0.00039693,7]
[393848603,1763041841604,-500.0,0.00039693,7]
[393848604,1763041841613,-500.0,0.00039693,7]
[393848605,1763041841623,-500.0,0.00039693,7]
[393848606,1763041841632,-500.0,0.00039693,7]
[393848607,1763041841641,-500.0,0.00039693,7]
[393848608,1763041841651,-500.0,0.00039693,7]
[393848609,1763041841660,-500.0,0.00039693,7]
[393848610,1763041841670,-500.0,0.00039693,7]
[393848611,1763041841679,-500.0,0.00039693,7]
[393848612,1763041841688,-500.0,0.00039693,7]
[393848613,1763041841697,-500.0,0.00039693,7]
[393848614,1763041841706,-500.0,0.00039693,7]
[393848615,1763041841715,-500.0,0.00039693,7]
[393848616,1763041841724,-500.0,0.00039693,7]
[393848617,1763041841734,-500.0,0.00039693,7]
[393848618,1763041841743,-500.0,0.00039693,7]
[393848619,1763041841753,-500.0,0.00039693,7]
[393848620,1763041841763,-500.0,0.00039693,7]
[393848621,1763041841774,-500.0,0.00039693,7]
[393848622,1763041841783,-500.0,0.00039693,7]
[393848623,1763041841792,-500.0,0.00039693,7]
[393848624,1763041841802,-500.0,0.00039693,7]
[393848625,1763041841812,-500.0,0.00039693,7]
[393848626,1763041841821,-500.0,0.00039693,7]
[393848627,1763041841830,-500.0,0.00039693,7]
[393848628,1763041841839,-500.0,0.00039693,7]
[393848629,1763041841849,-500.0,0.00039693,7]
[393848630,1763041841858,-500.0,0.00039693,7]
[393848631,1763041841867,-500.0,0.00039693,7]
[393848632,1763041841876,-500.0,0.00039693,7]
[393848633,1763041841886,-500.0,0.00039693,7]
[393848634,1763041841894,-500.0,0.00039693,7]
[393848635,1763041841904,-469.4,0.00039693,7]
[393848636,1763041841913,-500.0,0.00039693,7]
[393848637,1763041841922,-500.0,0.00039693,7]
[393848638,1763041841931,-500.0,0.00039693,7]
[393848639,1763041841942,-500.0,0.00039693,7]
[393848640,1763041841951,-500.0,0.00039693,7]
[393848641,1763041841960,-500.0,0.00039693,7]
[393848642,1763041841970,-500.0,0.00039693,7]
[393848643,1763041841979,-500.0,0.00039693,7]
[393848644,1763041841988,-500.0,0.00039693,7]
[393848645,1763041841998,-500.0,0.00039693,7]
[393848646,1763041842007,-421.53,0.00039693,7]
[393848647,1763041842018,-300.0,0.0003971,2]
[393848648,1763041842029,-500.0,0.00039715,2]
[393848649,1763041842037,-116655.139686,0.00039716,4]
[393848650,1763041842046,-500.0,0.00039725,2]
[393848651,1763041842054,-393.27088627,0.00039725,2]
[393848652,1763041842064,-1000.0,0.00039726,2]
[393848653,1763041842073,-1000.0,0.00039726,2]
[393848654,1763041842081,-1000.0,0.00039726,2]
[393848655,1763041842089,-1000.0,0.00039726,2]
[393848656,1763041842098,-500.0,0.00039726,20]
[393848657,1763041842106,-500.0,0.00039726,20]
[393848658,1763041842114,-500.0,0.00039726,20]
[393848659,1763041842122,-500.0,0.00039726,20]
[393848660,1763041842131,-500.0,0.00039726,20]
[393848661,1763041842139,-500.0,0.00039726,20]
[393848662,1763041842148,-518.17627398,0.00039726,20]
[393848663,1763041842156,-500.0,0.00039726,20]
[393848664,1763041842165,-500.0,0.00039726,20]
[393848665,1763041842174,-500.0,0.00039726,20]
[393848666,1763041842183,-500.0,0.00039726,20]
[393848667,1763041842192,-500.0,0.00039726,20]
[393848668,1763041842201,-500.0,0.00039726,20]
[393848669,1763041842210,-500.0,0.00039726,20]
[393848670,1763041842220,-500.0,0.00039726,20]
[393848671,1763041842230,-500.0,0.00039726,20]
[393848672,1763041842242,-500.0,0.00039726,20]
[393848673,1763041842251,-500.0,0.00039726,20]
[393848674,1763041842260,-500.0,0.00039726,20]
[393848675,1763041842269,-500.0,0.00039726,20]
[393848676,1763041842278,-500.0,0.00039726,20]
[393848677,1763041842288,-500.0,0.00039726,20]
[393848678,1763041842297,-500.0,0.00039726,20]
[393848679,1763041842306,-185.08123688,0.00039726,20]
[393848680,1763041842315,-577.49402086,0.00039726,20]
[393848681,1763041842324,-429.03361278,0.00039726,20]
[393848682,1763041842333,-509.06253574,0.00039726,20]
[393848683,1763041842342,-500.0,0.00039726,20]
[393848684,1763041842351,-500.0,0.00039726,20]
[393848685,1763041842360,-500.0,0.00039726,20]
[393848686,1763041842369,-500.0,0.00039726,20]
[393848687,1763041842378,-500.0,0.00039726,20]
[393848688,1763041842387,-500.0,0.00039726,20]
[393848689,1763041842397,-567.44379051,0.00039726,20]
[393848690,1763041842405,-500.0,0.00039726,20]
[393848691,1763041842414,-500.0,0.00039726,20]
[393848692,1763041842423,-500.0,0.00039726,20]
[393848693,1763041842433,-500.0,0.00039726,20]
[393848694,1763041842442,-500.0,0.00039726,20]
[393848695,1763041842452,-500.0,0.00039726,20]
[393848696,1763041842461,-500.0,0.00039726,20]
[393848699,1763041842607,-500.0,0.00039726,20]
[393848700,1763041842618,-500.0,0.00039726,20]
[393848701,1763041842626,-500.0,0.00039726,20]
[393848702,1763041842635,-500.0,0.00039726,20]
[393848703,1763041842644,-500.0,0.00039726,20]
[393848704,1763041842653,-500.0,0.00039726,20]
[393848705,1763041842662,-575.91726758,0.00039726,20]
[393848706,1763041842672,-500.0,0.00039726,20]
[393848707,1763041842681,-500.0,0.00039726,20]
[393848708,1763041842690,-500.0,0.00039726,20]
[393848709,1763041842699,-500.0,0.00039726,20]
[393848710,1763041842709,-500.0,0.00039726,20]
[393848711,1763041842719,-500.0,0.00039726,20]
[393848712,1763041842728,-500.0,0.00039726,20]
[393848713,1763041842737,-500.0,0.00039726,20]
[393848714,1763041842747,-500.0,0.00039726,20]
[393848715,1763041842756,-500.0,0.00039726,20]
[393848716,1763041842765,-500.0,0.00039726,20]
[393848717,1763041842775,-500.0,0.00039726,20]
[393848718,1763041842785,-500.0,0.00039726,20]
[393848719,1763041842794,-500.0,0.00039726,20]
[393848720,1763041842803,-507.66020252,0.00039726,20]
[393848721,1763041842812,-500.0,0.00039726,20]
[393848722,1763041842821,-500.0,0.00039726,20]
[393848723,1763041842831,-500.0,0.00039726,20]
[393848724,1763041842842,-500.0,0.00039726,20]
[393848725,1763041842851,-500.0,0.00039726,20]
[393848726,1763041842861,-500.0,0.00039726,20]
[393848727,1763041842870,-500.0,0.00039726,20]
[393848728,1763041842879,-500.44606773,0.00039726,20]
[393848730,1763041842889,-500.0,0.00039726,20]
[393848731,1763041842898,-500.0,0.00039726,20]
[393848732,1763041842908,-500.0,0.00039726,20]
[393848734,1763041842917,-500.0,0.00039726,20]
[393848735,1763041842926,-500.0,0.00039726,20]
[393848736,1763041842935,-500.0,0.00039726,20]
[393848737,1763041842944,-500.0,0.00039726,20]
[393848738,1763041842953,-500.0,0.00039726,20]
[393848739,1763041842963,-500.0,0.00039726,20]
[393848740,1763041842973,-506.03733701,0.00039726,20]
[393848741,1763041842982,-500.0,0.00039726,20]
[393848742,1763041842991,-500.0,0.00039726,20]
[393848743,1763041843000,-500.0,0.00039726,20]
[393848744,1763041843010,-500.0,0.00039726,20]
[393848745,1763041843019,-500.0,0.00039726,20]
[393848746,1763041843028,-500.0,0.00039726,20]
[393848747,1763041843038,-500.0,0.00039726,20]
[393848748,1763041843047,-500.0,0.00039726,20]
[393848749,1763041843056,-500.0,0.00039726,20]
[393848750,1763041843069,-500.0,0.00039726,20]
[393848751,1763041843079,-500.0,0.00039726,20]
[393848752,1763041843087,-500.0,0.00039726,20]
[393848753,1763041843098,-500.0,0.00039726,20]
[393848754,1763041843109,-500.0,0.00039726,20]
[393848755,1763041843118,-500.0,0.00039726,20]
[393848756,1763041843127,-500.0,0.00039726,20]
[393848757,1763041843138,-500.0,0.00039726,20]
[393848758,1763041843147,-500.0,0.00039726,20]
[393848759,1763041843156,-500.0,0.00039726,20]
[393848760,1763041843165,-500.0,0.00039726,20]
[393848761,1763041843175,-500.0,0.00039726,20]
[393848762,1763041843184,-500.0,0.00039726,20]
[393848763,1763041843193,-500.0,0.00039726,20]
[393848764,1763041843203,-500.0,0.00039726,20]
[393848765,1763041843212,-500.0,0.00039726,20]
[393848766,1763041843221,-500.0,0.00039726,20]
[393848767,1763041843232,-500.0,0.00039726,20]
[393848768,1763041843243,-500.0,0.00039726,20]
[393848769,1763041843252,-500.0,0.00039726,20]
[393848770,1763041843262,-500.0,0.00039726,20]
[393848771,1763041843271,-500.0,0.00039726,20]
[393848772,1763041843280,-500.0,0.00039726,20]
[393848773,1763041843289,-500.0,0.00039726,20]
[393848774,1763041843298,-500.0,0.00039726,20]
[393848775,1763041843308,-500.0,0.00039726,20]
[393848776,1763041843318,-500.0,0.00039726,20]
[393848777,1763041843328,-500.0,0.00039726,20]
[393848778,1763041843338,-500.0,0.00039726,20]
[393848779,1763041843348,-500.0,0.00039726,20]
[393848780,1763041843357,-500.0,0.00039726,20]
[393848781,1763041843366,-500.0,0.00039726,20]
[393848782,1763041843375,-500.0,0.00039726,20]
[393848783,1763041843384,-500.0,0.00039726,20]
[393848784,1763041843394,-500.0,0.00039726,20]
[393848785,1763041843403,-500.0,0.00039726,20]
[393848786,1763041843411,-500.0,0.00039726,20]
[393848787,1763041843420,-500.0,0.00039726,20]
[393848788,1763041843429,-500.0,0.00039726,20]
[393848789,1763041843439,-500.0,0.00039726,20]
[393848790,1763041843448,-500.0,0.00039726,20]
[393848791,1763041843457,-500.0,0.00039726,20]
[393848792,1763041843466,-500.0,0.00039726,20]
[393848793,1763041843475,-500.0,0.00039726,20]
[393848794,1763041843484,-500.75198349,0.00039726,20]
[393848795,1763041843493,-500.0,0.00039726,20]
[393848796,1763041843502,-500.0,0.00039726,20]
[393848797,1763041843511,-500.0,0.00039726,20]
[393848798,1763041843521,-500.0,0.00039726,20]
[393848799,1763041843530,-500.0,0.00039726,20]
[393848800,1763041843540,-502.66592749,0.00039726,20]
[393848801,1763041843549,-500.0,0.00039726,20]
[393848802,1763041843558,-500.0,0.00039726,20]
[393848803,1763041843567,-500.0,0.00039726,20]
[393848804,1763041843577,-500.0,0.00039726,20]
[393848805,1763041843586,-500.0,0.00039726,20]
[393848806,1763041843596,-500.0,0.00039726,20]
[393848807,1763041843606,-500.0,0.00039726,20]
[393848808,1763041843615,-500.0,0.00039726,20]
[393848809,1763041843625,-500.0,0.00039726,20]
[393848810,1763041843635,-500.0,0.00039726,20]
[393848811,1763041843645,-500.0,0.00039726,20]
[393848812,1763041843655,-500.0,0.00039726,20]
[393848813,1763041843664,-500.0,0.00039726,20]
[393848814,1763041843674,-500.0,0.00039726,20]
[393848815,1763041843683,-500.0,0.00039726,20]
[393848816,1763041843692,-500.0,0.00039726,20]
[393848817,1763041843702,-500.0,0.00039726,20]
[393848818,1763041843711,-500.0,0.00039726,20]
[393848819,1763041843721,-500.0,0.00039726,20]
[393848820,1763041843730,-500.0,0.00039726,20]
[393848821,1763041843740,-500.0,0.00039726,20]
[393848822,1763041843749,-500.0,0.00039726,20]
[393848823,1763041843758,-500.0,0.00039726,20]
[393848824,1763041843767,-500.0,0.00039726,20]
[393848825,1763041843776,-500.0,0.00039726,20]
[393848826,1763041843786,-500.0,0.00039726,20]
[393848827,1763041843795,-500.0,0.00039726,20]
[393848828,1763041843804,-500.0,0.00039726,20]
[393848829,1763041843814,-500.0,0.00039726,20]
[393848830,1763041843824,-500.0,0.00039726,20]
[393848831,1763041843834,-500.0,0.00039726,20]
[393848832,1763041843843,-500.0,0.00039726,20]
[393848833,1763041843854,-500.0,0.00039726,20]
[393848834,1763041843863,-500.0,0.00039726,20]
[393848835,1763041843873,-500.0,0.00039726,20]
[393848836,1763041843883,-500.0,0.00039726,20]
[393848837,1763041843892,-500.0,0.00039726,20]
[393848838,1763041843901,-500.0,0.00039726,20]
[393848839,1763041843911,-500.0,0.00039726,20]
[393848840,1763041843921,-500.0,0.00039726,20]
[393848841,1763041843930,-500.77961132,0.00039726,20]
[393848842,1763041843942,-503.26682726,0.00039726,20]
[393848843,1763041843953,-500.73090455,0.00039726,20]
[393848844,1763041843964,-500.0,0.00039726,20]
[393848845,1763041843975,-500.0,0.00039726,20]
[393848846,1763041843985,-500.0,0.00039726,20]
[393848847,1763041843994,-500.0,0.00039726,20]
[393848848,1763041844004,-500.0,0.00039726,20]
[393848849,1763041844013,-500.0,0.00039726,20]
[393848850,1763041844023,-500.0,0.00039726,20]
[393848851,1763041844033,-500.0,0.00039726,20]
[393848852,1763041844042,-500.0,0.00039726,20]
[393848853,1763041844052,-500.0,0.00039726,20]
[393848854,1763041844062,-500.0,0.00039726,20]
[393848855,1763041844074,-500.0,0.00039726,20]
[393848856,1763041844086,-500.0,0.00039726,20]
[393848857,1763041844096,-500.0,0.00039726,20]
[393848858,1763041844105,-500.0,0.00039726,20]
[393848859,1763041844114,-500.0,0.00039726,20]
[393848860,1763041844123,-500.0,0.00039726,20]
[393848861,1763041844133,-500.0,0.00039726,20]
[393848862,1763041844143,-500.0,0.00039726,20]
[393848863,1763041844152,-500.0,0.00039726,20]
[393848864,1763041844162,-500.0,0.00039726,20]
[393848865,1763041844171,-500.0,0.00039726,20]
[393848866,1763041844180,-500.0,0.00039726,20]
[393848867,1763041844189,-500.0,0.00039726,20]
[393848868,1763041844199,-500.0,0.00039726,20]
[393848869,1763041844207,-526.93818885,0.00039726,20]
[393848870,1763041844216,-500.61453471,0.00039726,20]
[393848871,1763041844225,-512.49547415,0.00039726,20]
[393848872,1763041844234,-500.0,0.00039726,20]
[393848873,1763041844243,-500.0,0.00039726,20]
[393848874,1763041844252,-500.0,0.00039726,20]
[393848875,1763041844261,-500.0,0.00039726,20]
[393848876,1763041844270,-500.0,0.00039726,20]
[393848877,1763041844280,-500.0,0.00039726,20]
[393848878,1763041844290,-500.0,0.00039726,20]
[393848879,1763041844299,-500.0,0.00039726,20]
[393848880,1763041844309,-500.0,0.00039726,20]
[393848881,1763041844319,-500.0,0.00039726,20]
[393848882,1763041844330,-500.0,0.00039726,20]
[393848883,1763041844340,-500.0,0.00039726,20]
[393848885,1763041844350,-500.0,0.00039726,20]
[393848887,1763041844359,-500.0,0.00039726,20]
[393848889,1763041844367,-500.0,0.00039726,20]
[393848891,1763041844378,-500.0,0.00039726,20]
[393848893,1763041844387,-500.0,0.00039726,20]
[393848895,1763041844395,-500.0,0.00039726,20]
[393848897,1763041844404,-500.0,0.00039726,20]
[393848899,1763041844414,-500.0,0.00039726,20]
[393848901,1763041844423,-503.39330781,0.00039726,20]
[393848903,1763041844433,-500.0,0.00039726,20]
[393848905,1763041844442,-500.0,0.00039726,20]
[393848907,1763041844451,-500.0,0.00039726,20]
[393848909,1763041844460,-506.29804031,0.00039726,20]
[393848911,1763041844469,-500.0,0.00039726,20]
[393848913,1763041844479,-500.0,0.00039726,20]
[393848915,1763041844488,-500.0,0.00039726,20]
[393848917,1763041844498,-500.0,0.00039726,20]
[393848919,1763041844507,-500.0,0.00039726,20]
[393848921,1763041844516,-500.0,0.00039726,20]
[393848923,1763041844525,-500.0,0.00039726,20]
[393848925,1763041844535,-500.0,0.00039726,20]
[393848927,1763041844544,-575.30989382,0.00039726,20]
[393848929,1763041844553,-500.0,0.00039726,20]
[393848931,1763041844562,-500.0,0.00039726,20]
[393848933,1763041844570,-500.0,0.00039726,20]
[393848935,1763041844580,-500.0,0.00039726,20]
[393848937,1763041844589,-500.0,0.00039726,20]
[393848939,1763041844599,-500.0,0.00039726,20]
[393848941,1763041844608,-508.69336289,0.00039726,20]
[393848942,1763041844617,-500.0,0.00039726,20]
[393848944,1763041844627,-500.0,0.00039726,20]
[393848946,1763041844636,-500.0,0.00039726,20]
[393848947,1763041844646,-500.0,0.00039726,20]
[393848948,1763041844655,-500.0,0.00039726,20]
[393848949,1763041844664,-532.37073322,0.00039726,20]
[393848950,1763041844674,-500.0,0.00039726,20]
[393848951,1763041844684,-540.76527471,0.00039726,20]
[393848952,1763041844693,-500.0,0.00039726,20]
[393848953,1763041844703,-309.75687164,0.00039726,20]
[393848954,1763041844712,-500.0,0.00039726,20]
[393848955,1763041844721,-500.0,0.00039726,20]
[393848956,1763041844731,-500.0,0.00039726,20]
[393848957,1763041844741,-500.0,0.00039726,20]
[393848958,1763041844750,-500.0,0.00039726,20]
[393848959,1763041844760,-510.79381989,0.00039726,20]
[393848960,1763041844770,-500.0,0.00039726,20]
[393848961,1763041844779,-500.0,0.00039726,20]
[393848962,1763041844789,-500.0,0.00039726,20]
[393848963,1763041844798,-500.0,0.00039726,20]
[393848964,1763041844807,-500.0,0.00039726,20]
[393848965,1763041844816,-500.0,0.00039726,20]
[393848966,1763041844827,-500.0,0.00039726,20]
[393848967,1763041844838,-500.0,0.00039726,20]
[393848968,1763041844848,-500.0,0.00039726,20]
[393848969,1763041844858,-500.0,0.00039726,20]
[393848970,1763041844867,-576.37304373,0.00039726,20]
[393848971,1763041844877,-500.0,0.00039726,20]